lending/lending_fUSD_20260411
["ID","MTS","AMOUNT","RATE_DAILY","PERIOD"]
[420277514,1775907033552,-1410.17972189,8.692e-05,2]
[420277515,1775907033561,-1410.17972189,8.692e-05,2]
[420277516,1775907033571,-1410.17972189,8.692e-05,2]
[420277517,1775907033580,-1410.17972189,8.692e-05,2]
[420277518,1775907033589,-1410.17972189,8.692e-05,2]
[420277519,1775907033599,-1410.17972189,8.692e-05,2]
[420277520,1775907033609,-1410.17972189,8.692e-05,2]
[420277521,1775907033618,-1410.17972189,8.692e-05,2]
[420277522,1775907033627,-1410.17972189,8.692e-05,2]
[420277523,1775907033638,-4416.006,8.692e-05,2]
[420277524,1775907033647,-218.348,8.692e-05,2]
[420277525,1775907033656,-332.42,8.692e-05,2]
[420277526,1775907033665,-150.0,8.692e-05,2]
[420277527,1775907033674,-152.0,8.845e-05,2]
[420277528,1775907033687,-152.0,8.845e-05,2]
[420277529,1775907033698,-668.08993756,8.845e-05,2]
[420277530,1775907033707,-152.0,8.847e-05,2]
[420277531,1775907033716,-152.0,8.847e-05,2]
[420277532,1775907033732,-152.0,8.847e-05,2]
[420277533,1775907033742,-152.0,8.847e-05,2]
[420277534,1775907033751,-152.0,8.847e-05,2]
[420277535,1775907033763,-152.0,8.847e-05,2]
[420277536,1775907033774,-152.0,8.847e-05,2]
[420277537,1775907033786,-9999.99,8.893e-05,2]
[420277538,1775907033794,-3001.5,8.893e-05,2]
[420277539,1775907033807,-1300.0,8.9e-05,3]
[420277540,1775907033818,-260.0,8.94e-05,2]
[420277541,1775907033830,-154.0,8.948e-05,3]
[420277542,1775907034182,-267.0,8.948e-05,3]
[420277543,1775907034223,-165.0,8.948e-05,3]
[420277544,1775907034236,-160.0,8.948e-05,3]
[420277545,1775907034268,-332.42,8.966e-05,2]
[420277546,1775907034278,-2700.0,9e-05,3]
[420277547,1775907034300,-500.0,9.046e-05,2]
[420277548,1775907034312,-340.41,9.134e-05,2]
[420277549,1775907034322,-150.0,9.202e-05,2]
[420277550,1775907034344,-1501.0,9.203e-05,2]
[420277551,1775907034357,-678.39170971,9.222e-05,2]
[420277552,1775907034369,-330.0,9.234e-05,2]
[420277553,1775907034379,-332.42,9.24e-05,2]
[420277554,1775907034394,-2000.0,9.35e-05,2]
[420277555,1775907034403,-250.0,9.48e-05,2]
[420277556,1775907034415,-1680.0,9.48e-05,2]
[420277557,1775907034426,-983.04,9.481e-05,2]
[420277558,1775907034441,-250.0,9.481e-05,2]
[420277559,1775907034453,-250.0,9.481e-05,2]
[420277560,1775907034464,-150.0,9.5e-05,2]
[420277561,1775907034479,-506.50023244,9.5e-05,2]
[420277562,1775907034489,-420.0,9.539e-05,2]
[420277563,1775907034502,-420.0,9.539e-05,2]
[420277564,1775907034512,-300.0,9.539e-05,2]
[420277565,1775907034524,-255.0,9.561e-05,2]
[420277566,1775907034535,-208.56946585,9.589e-05,2]
[420277567,1775907034547,-267.0,9.635e-05,3]
[420277568,1775907034556,-4264.67920216,9.663e-05,2]
[420277571,1775907037788,-500.0,8.692e-05,2]
[420277572,1775907037894,-141.07171884,8.692e-05,2]
[420277573,1775907038083,-110.10626472,8.692e-05,2]
[420277574,1775907038235,-500.0,8.692e-05,2]
[420277576,1775907038350,-156.29179204,8.692e-05,2]
[420277580,1775907038662,-1253.88792985,8.692e-05,2]
[420277582,1775907038715,-14.00719012,9.663e-05,2]
[420277584,1775907038766,-9330.78360772,9.663e-05,2]
[420277586,1775907038800,-668.11622201,9.722e-05,2]
[420277600,1775907041301,-46446.26444858,9.722e-05,2]
[420277603,1775907042708,-1131.9414888,9.722e-05,2]
[420277604,1775907042754,-10209.51213211,9.722e-05,2]
[420277607,1775907044860,-11788.6798868,9.722e-05,2]
[420277608,1775907044870,-721138.7979012,9.722e-05,2]
[420277609,1775907044879,-180994.9232768,9.722e-05,2]
[420277610,1775907044887,-315.554066,9.722e-05,2]
[420277611,1775907044897,-315.554066,9.722e-05,2]
[420277612,1775907044906,-315.554066,9.722e-05,2]
[420277613,1775907044915,-315.554066,9.722e-05,2]
[420277614,1775907044924,-4320.82,9.767e-05,2]
[420277615,1775907044936,-1000.0,9.9e-05,2]
[420277616,1775907044946,-4100.0,9.9e-05,3]
[420277617,1775907044955,-201.0,9.989e-05,2]
[420277618,1775907044964,-201.0,9.989e-05,2]
[420277619,1775907044973,-201.0,9.989e-05,2]
[420277620,1775907044982,-201.0,9.989e-05,2]
[420277621,1775907044991,-201.0,9.989e-05,2]
[420277622,1775907044999,-1218.0,9.994e-05,2]
[420277623,1775907045009,-926.0,9.994e-05,2]
[420277624,1775907045017,-622.0,9.994e-05,2]
[420277625,1775907045027,-2472.0,9.994e-05,2]
[420277626,1775907045036,-151.0,0.0001,2]
[420277627,1775907045045,-151.0,0.0001,2]
[420277628,1775907045054,-151.0,0.0001,2]
[420277629,1775907045063,-151.0,0.0001,2]
[420277630,1775907045072,-151.0,0.0001,2]
[420277631,1775907045081,-151.0,0.0001,2]
[420277632,1775907045091,-151.0,0.0001,2]
[420277633,1775907045101,-151.0,0.0001,2]
[420277634,1775907045112,-151.0,0.0001,2]
[420277635,1775907045120,-151.0,0.0001,2]
[420277636,1775907045133,-151.0,0.0001,2]
[420277637,1775907045149,-5400.0,0.0001,3]
[420277638,1775907045159,-151.0,0.0001,2]
[420277639,1775907045168,-151.0,0.0001,2]
[420277640,1775907045187,-151.0,0.0001,2]
[420277641,1775907045197,-151.0,0.0001,2]
[420277642,1775907045207,-500.0,0.0001,2]
[420277643,1775907045214,-500.0,0.0001,2]
[420277644,1775907045244,-500.0,0.0001,2]
[420277645,1775907045251,-500.0,0.0001,2]
[420277646,1775907045283,-500.0,0.0001,2]
[420277647,1775907045293,-500.0,0.0001,2]
[420277648,1775907045325,-500.0,0.0001,2]
[420277649,1775907045338,-500.0,0.0001,2]
[420277650,1775907045380,-500.0,0.0001,2]
[420277651,1775907045411,-500.0,0.0001,2]
[420277652,1775907045446,-500.0,0.0001,2]
[420277653,1775907045473,-500.0,0.0001,2]
[420277654,1775907045497,-500.0,0.0001,2]
[420277655,1775907045535,-500.0,0.0001,2]
[420277656,1775907045578,-500.0,0.0001,2]
[420277657,1775907045632,-368.15520974,0.0001,2]
[420277658,1775907045721,-306.78019699,0.0001,2]
[420277659,1775907045847,-239.477,0.00010072,2]
[420277660,1775907045911,-578.20924308,0.0001009,2]
[420277661,1775907045951,-200.0,0.0001009,2]
[420277662,1775907045993,-1235.18214925,0.0001009,2]
[420277663,1775907046045,-500.0,0.0001009,2]
[420277664,1775907046078,-6066.56130566,0.0001009,2]
[420277665,1775907046107,-500.0,0.0001009,2]
[420277666,1775907046127,-500.0,0.0001009,2]
[420277668,1775907046154,-174.61919141,0.0001009,2]
[420277669,1775907046180,-500.0,0.0001009,2]
[420277670,1775907046213,-743.50770149,0.0001009,2]
[420277671,1775907046234,-500.0,0.0001009,2]
[420277672,1775907046257,-151.0,0.0001009,2]
[420277673,1775907046273,-500.0,0.0001009,2]
[420277674,1775907046291,-500.0,0.0001009,2]
[420277676,1775907046302,-500.0,0.0001009,2]
[420277677,1775907046319,-500.0,0.0001009,2]
[420277678,1775907046336,-500.0,0.0001009,2]
[420277679,1775907046348,-500.0,0.0001009,2]
[420277680,1775907046364,-500.0,0.0001009,2]
[420277681,1775907046380,-500.0,0.0001009,2]
[420277682,1775907046389,-500.0,0.0001009,2]
[420277683,1775907046405,-500.0,0.0001009,2]
[420277684,1775907046415,-592.50770149,0.0001009,2]
[420277685,1775907046431,-1000.0,0.000101,2]
[420277686,1775907046446,-506.0,0.00010284,5]
[420277687,1775907046457,-403.0,0.00010314,5]
[420277688,1775907046471,-447.0,0.00010314,5]
[420277689,1775907046480,-267.0,0.00010322,3]
[420277690,1775907046497,-161.7,0.00010346,2]
[420277691,1775907046506,-2000.0,0.00010388,2]
[420277692,1775907046516,-160.0,0.00010398,3]
[420277693,1775907046525,-2351.0,0.00010428,2]
[420277694,1775907046541,-587.0,0.00010493,2]
[420277695,1775907046551,-234.0,0.00010493,2]
[420277696,1775907046562,-433.0,0.00010517,2]
[420277697,1775907046573,-160.0,0.00010576,2]
[420277698,1775907046585,-1280.88388878,0.00010638,2]
[420277699,1775907046595,-200.0,0.00010638,2]
[420277700,1775907046605,-181.08010149,0.00010638,2]
[420277701,1775907046614,-250.0,0.00010749,2]
[420277702,1775907046625,-175.2322,0.000109,2]
[420277703,1775907046634,-1466.37,0.00010959,2]
[420277704,1775907046646,-150.0,0.00010959,2]
[420277705,1775907046656,-3475.67,0.00010959,2]
[420277706,1775907046665,-150.0,0.00010959,2]
[420277707,1775907046680,-267.0,0.00011009,3]
[420277708,1775907046693,-221.6759081,0.00011023,2]
[420277709,1775907046703,-16041.98876846,0.00011023,2]
[420277710,1775907046712,-2518.17483384,0.00011052,2]
[420277711,1775907046723,-17144.63176333,0.00011099,2]
[420277712,1775907046735,-17144.63176328,0.00011099,2]
[420277713,1775907046745,-17144.63176328,0.00011099,2]
[420277714,1775907046756,-17144.63176328,0.00011099,2]
[420277715,1775907046768,-17144.63176328,0.00011099,2]
[420277716,1775907046783,-315.554066,0.00011099,2]
[420277717,1775907046793,-315.554066,0.00011099,2]
[420277718,1775907046803,-315.554066,0.00011099,2]
[420277719,1775907046815,-315.554066,0.00011099,2]
[420277720,1775907046833,-315.554066,0.00011099,2]
[420277721,1775907046843,-315.554066,0.00011099,2]
[420277722,1775907046855,-315.554066,0.00011099,2]
[420277723,1775907046875,-315.554066,0.00011099,2]
[420277724,1775907046884,-154.0,0.00011123,3]
[420277725,1775907046897,-165.0,0.00011123,3]
[420277726,1775907046920,-180994.9232768,0.00011152,2]
[420277727,1775907046930,-315.554066,0.00011152,2]
[420277728,1775907046948,-315.554066,0.00011152,2]
[420277729,1775907046965,-315.554066,0.00011152,2]
[420277730,1775907046975,-315.554066,0.00011152,2]
[420277731,1775907047001,-1328.27659266,0.00011186,2]
[420277732,1775907047011,-200.0,0.00011186,2]
[420277733,1775907047029,-187.78006525,0.00011186,2]
[420277734,1775907047052,-500.0,0.00011222,2]
[420277735,1775907047067,-500.0,0.00011222,2]
[420277736,1775907047095,-500.0,0.00011222,2]
[420277737,1775907047131,-500.0,0.00011222,2]
[420277738,1775907047142,-500.0,0.00011222,2]
[420277739,1775907047186,-500.0,0.00011222,2]
[420277740,1775907047222,-500.0,0.00011222,2]
[420277741,1775907047254,-500.0,0.00011222,2]
[420277742,1775907047268,-500.0,0.00011222,2]
[420277743,1775907047286,-500.0,0.00011222,2]
[420277744,1775907047301,-816.0,0.00011222,2]
[420277745,1775907047318,-151.0,0.00011227,2]
[420277746,1775907047339,-300.0,0.00011229,2]
[420277747,1775907047355,-500.0,0.000113,2]
[420277748,1775907047367,-2000.0,0.00011427,2]
[420277749,1775907047390,-17144.63176328,0.00011442,2]
[420277750,1775907047408,-3292.0,0.00011471,2]
[420277751,1775907047442,-2193.86,0.00011507,2]
[420277752,1775907047475,-823.0,0.00011542,2]
[420277753,1775907047491,-676.0,0.00011567,2]
[420277754,1775907047519,-736.0,0.00011569,2]
[420277755,1775907047536,-152.0,0.00011624,3]
[420277756,1775907047550,-500.0,0.00011681,2]
[420277757,1775907047578,-500.0,0.00011681,2]
[420277758,1775907047594,-500.0,0.00011681,2]
[420277759,1775907047615,-500.0,0.00011681,2]
[420277760,1775907047628,-500.0,0.00011681,2]
[420277761,1775907047638,-500.0,0.00011681,2]
[420277762,1775907047650,-500.0,0.00011681,2]
[420277763,1775907047664,-500.0,0.00011681,2]
[420277764,1775907047674,-500.0,0.00011681,2]
[420277765,1775907047686,-500.0,0.00011681,2]
[420277766,1775907047700,-500.0,0.00011681,2]
[420277767,1775907047710,-500.0,0.00011681,2]
[420277768,1775907047737,-500.0,0.00011681,2]
[420277769,1775907047752,-500.0,0.00011681,2]
[420277770,1775907047762,-500.0,0.00011681,2]
[420277771,1775907047772,-500.0,0.00011681,2]
[420277772,1775907047781,-500.0,0.00011681,2]
[420277773,1775907047793,-500.0,0.00011681,2]
[420277774,1775907047803,-500.0,0.00011681,2]
[420277775,1775907047812,-500.0,0.00011681,2]
[420277776,1775907047821,-500.0,0.00011681,2]
[420277777,1775907047833,-500.0,0.00011681,2]
[420277778,1775907047842,-500.0,0.00011681,2]
[420277779,1775907047851,-500.0,0.00011681,2]
[420277780,1775907047861,-500.0,0.00011681,2]
[420277781,1775907047870,-500.0,0.00011681,2]
[420277782,1775907048436,-500.0,0.00011681,2]
[420277783,1775907048448,-500.0,0.00011681,2]
[420277784,1775907048458,-500.0,0.00011681,2]
[420277785,1775907048469,-500.0,0.00011681,2]
[420277786,1775907048479,-500.0,0.00011681,2]
[420277787,1775907048491,-500.0,0.00011681,2]
[420277788,1775907048500,-500.0,0.00011681,2]
[420277789,1775907048513,-500.0,0.00011681,2]
[420277790,1775907048525,-500.0,0.00011681,2]
[420277791,1775907048534,-500.0,0.00011681,2]
[420277792,1775907048547,-500.0,0.00011681,2]
[420277793,1775907048556,-500.0,0.00011681,2]
[420277794,1775907048568,-500.0,0.00011681,2]
[420277795,1775907048578,-500.0,0.00011681,2]
[420277796,1775907048591,-500.0,0.00011681,2]
[420277797,1775907048600,-500.0,0.00011681,2]
[420277798,1775907048612,-500.0,0.00011681,2]
[420277799,1775907048622,-500.0,0.00011681,2]
[420277800,1775907048635,-500.0,0.00011681,2]
[420277801,1775907048644,-500.0,0.00011681,2]
[420277802,1775907048656,-500.0,0.00011681,2]
[420277803,1775907048666,-500.0,0.00011681,2]
[420277804,1775907048680,-500.0,0.00011681,2]
[420277805,1775907048690,-500.0,0.00011681,2]
[420277806,1775907048702,-500.0,0.00011681,2]
[420277807,1775907048711,-500.0,0.00011681,2]
[420277808,1775907048724,-500.0,0.00011681,2]
[420277809,1775907048733,-500.0,0.00011681,2]
[420277810,1775907048745,-500.0,0.00011681,2]
[420277811,1775907048755,-500.0,0.00011681,2]
[420277812,1775907048765,-945.0,0.00011681,2]
[420277813,1775907048775,-500.0,0.00011681,2]
[420277814,1775907048786,-500.0,0.00011681,2]
[420277815,1775907048795,-500.0,0.00011681,2]
[420277816,1775907048808,-500.0,0.00011681,2]
[420277817,1775907048817,-500.0,0.00011681,2]
[420277818,1775907048827,-500.0,0.00011681,2]
[420277819,1775907048836,-500.0,0.00011681,2]
[420277820,1775907048848,-500.0,0.00011681,2]
[420277821,1775907048858,-500.0,0.00011681,2]
[420277822,1775907048868,-500.0,0.00011681,2]
[420277823,1775907048877,-500.0,0.00011681,2]
[420277824,1775907048892,-500.0,0.00011681,2]
[420277825,1775907048902,-500.0,0.00011681,2]
[420277826,1775907048913,-500.0,0.00011681,2]
[420277827,1775907048922,-500.0,0.00011681,2]
[420277828,1775907048942,-500.0,0.00011681,2]
[420277829,1775907048951,-500.0,0.00011681,2]
[420277830,1775907048966,-500.0,0.00011681,2]
[420277831,1775907048983,-500.0,0.00011681,2]
[420277832,1775907048995,-500.0,0.00011681,2]
[420277833,1775907049010,-500.0,0.00011681,2]
[420277834,1775907049027,-500.0,0.00011681,2]
[420277835,1775907049043,-500.0,0.00011681,2]
[420277836,1775907049058,-500.0,0.00011681,2]
[420277837,1775907049079,-500.0,0.00011681,2]
[420277838,1775907049102,-500.0,0.00011681,2]
[420277839,1775907049127,-500.0,0.00011681,2]
[420277840,1775907049168,-500.0,0.00011681,2]
[420277841,1775907049233,-500.0,0.00011681,2]
[420277842,1775907049294,-500.0,0.00011681,2]
[420277843,1775907049392,-500.0,0.00011681,2]
[420277844,1775907049454,-500.0,0.00011681,2]
[420277845,1775907049480,-500.0,0.00011681,2]
[420277846,1775907049515,-500.0,0.00011681,2]
[420277847,1775907049570,-500.0,0.00011681,2]
[420277848,1775907049678,-500.0,0.00011681,2]
[420277849,1775907049809,-500.0,0.00011681,2]
[420277850,1775907049919,-500.0,0.00011681,2]
[420277851,1775907049950,-500.0,0.00011681,2]
[420277852,1775907049971,-500.0,0.00011681,2]
[420277853,1775907049990,-500.0,0.00011681,2]
[420277854,1775907050010,-500.0,0.00011681,2]
[420277855,1775907050019,-500.0,0.00011681,2]
[420277856,1775907050034,-500.0,0.00011681,2]
[420277857,1775907050052,-500.0,0.00011681,2]
[420277858,1775907050061,-500.0,0.00011681,2]
[420277859,1775907050077,-500.0,0.00011681,2]
[420277860,1775907050089,-500.0,0.00011681,2]
[420277861,1775907050102,-500.0,0.00011681,2]
[420277862,1775907050116,-500.0,0.00011681,2]
[420277863,1775907050126,-500.0,0.00011681,2]
[420277864,1775907050137,-500.0,0.00011681,2]
[420277865,1775907050149,-500.0,0.00011681,2]
[420277866,1775907050158,-995.0,0.00011681,2]
[420277867,1775907050171,-500.0,0.00011681,2]
[420277868,1775907050184,-500.0,0.00011681,2]
[420277869,1775907050193,-500.0,0.00011681,2]
[420277870,1775907050205,-500.0,0.00011681,2]
[420277871,1775907050214,-500.0,0.00011681,2]
[420277872,1775907050225,-500.0,0.00011681,2]
[420277873,1775907050235,-500.0,0.00011681,2]
[420277874,1775907050245,-812.0,0.00011681,2]
[420277875,1775907050254,-500.0,0.00011681,2]
[420277876,1775907050263,-500.0,0.00011681,2]
[420277877,1775907050273,-500.0,0.00011681,2]
[420277878,1775907050282,-500.0,0.00011681,2]
[420277879,1775907050294,-500.0,0.00011681,2]
[420277880,1775907050303,-500.0,0.00011681,2]
[420277881,1775907050313,-500.0,0.00011681,2]
[420277882,1775907050326,-500.0,0.00011681,2]
[420277883,1775907050335,-500.0,0.00011681,2]
[420277884,1775907050344,-500.0,0.00011681,2]
[420277885,1775907050353,-500.0,0.00011681,2]
[420277886,1775907050363,-500.0,0.00011681,2]
[420277887,1775907050375,-500.0,0.00011681,2]
[420277888,1775907050385,-500.0,0.00011681,2]
[420277889,1775907050394,-500.0,0.00011681,2]
[420277890,1775907050403,-500.0,0.00011681,2]
[420277891,1775907050416,-500.0,0.00011681,2]
[420277892,1775907050425,-500.0,0.00011681,2]
[420277893,1775907050434,-500.0,0.00011681,2]
[420277894,1775907050445,-500.0,0.00011681,2]
[420277895,1775907050454,-500.0,0.00011681,2]
[420277896,1775907050466,-500.0,0.00011681,2]
[420277897,1775907050475,-500.0,0.00011681,2]
[420277898,1775907050484,-500.0,0.00011681,2]
[420277899,1775907050494,-804.0,0.00011681,2]
[420277900,1775907050507,-959.0,0.00011681,2]
[420277901,1775907050516,-267.0,0.00011696,3]
[420277902,1775907050525,-1377.42282659,0.00011734,2]
[420277903,1775907050535,-200.0,0.00011734,2]
[420277904,1775907050545,-194.72792766,0.00011734,2]
[420277905,1775907050555,-160.0,0.00011741,2]
[420277906,1775907050565,-1973.890685,0.00011741,2]
[420277907,1775907050574,-3787.781371,0.00011741,2]
[420277908,1775907050583,-160.0,0.00011741,2]
[420277909,1775907050593,-300.0,0.00011742,2]
[420277910,1775907050606,-160907.8154649,0.00011743,2]
[420277911,1775907050616,-315.554066,0.00011743,2]
[420277912,1775907050626,-315.554066,0.00011743,2]
[420277913,1775907050635,-315.554066,0.00011743,2]
[420277914,1775907050647,-315.554075,0.00011743,2]
[420277915,1775907050656,-1500.0,0.00011781,2]
[420277916,1775907050665,-2600.0,0.00011781,2]
[420277917,1775907050676,-1003.06611839,0.00011848,2]
[420277918,1775907050685,-160.0,0.00011848,3]
[420277919,1775907050694,-15673.6696981,0.00011893,2]
[420277920,1775907050703,-17144.63176328,0.00011981,2]
[420277921,1775907050713,-338.73036492,0.00012035,2]
[420277922,1775907050722,-368.15520972,0.00012123,2]
[420277923,1775907050732,-404.97147309,0.00012187,2]
[420277924,1775907050742,-35903.3866338,0.00012194,2]
[420277925,1775907050752,-45981.07632347,0.00012271,2]
[420277926,1775907050763,-1428.38747117,0.00012282,2]
[420277927,1775907050772,-200.0,0.00012282,2]
[420277928,1775907050782,-201.93286099,0.00012282,2]
[420277929,1775907050791,-204.7089,0.000123,2]
[420277930,1775907050800,-2691.669117,0.00012328,2]
[420277931,1775907050810,-3497.2684298,0.00012377,2]
[420277932,1775907050819,-267.0,0.00012383,3]
[420277933,1775907050828,-162.24573392,0.00012411,2]
[420277934,1775907050838,-1600.0,0.00012448,2]
[420277935,1775907050847,-2000.0,0.00012466,2]
[420277936,1775907050856,-17144.63176328,0.0001252,2]
[420277937,1775907050866,-306.78019699,0.00012572,2]
[420277938,1775907050875,-180994.9232768,0.00012582,2]
[420277939,1775907050885,-4609.0,0.00012618,2]
[420277940,1775907050895,-169.69692143,0.00012618,2]
[420277941,1775907050905,-482.74547583,0.00012658,2]
[420277942,1775907050914,-421.44,0.00012658,2]
[420277943,1775907050924,-375.01521552,0.00012658,2]
[420277944,1775907050933,-1152.0,0.00012696,2]
[420277945,1775907050942,-1252.0,0.00012725,2]
[420277946,1775907050952,-599.60298507,0.00012829,2]
[420277947,1775907050962,-1481.23780761,0.0001283,2]
[420277948,1775907050971,-200.0,0.0001283,2]
[420277949,1775907050982,-209.40437684,0.0001283,2]
[420277950,1775907050991,-1053.97351866,0.00012842,2]
[420277951,1775907051000,-1065.64193668,0.00012842,2]
[420277952,1775907051010,-1129.72324657,0.00012842,2]
[420277953,1775907051022,-1093.11967793,0.00012842,2]
[420277954,1775907051031,-1116.64854182,0.00012842,2]
[420277955,1775907051041,-1939.35798852,0.00012842,2]
[420277956,1775907051051,-45981.07632347,0.00012851,2]
[420277957,1775907051060,-152.0,0.00012897,4]
[420277958,1775907051070,-24032.48838705,0.000129,2]
[420277959,1775907051079,-6800.0,0.000129,4]
[420277960,1775907051089,-352.12075661,0.00012947,2]
[420277961,1775907051101,-1218.0,0.00012994,2]
[420277962,1775907051111,-2472.0,0.00012994,2]
[420277963,1775907051121,-250.0,0.00013,2]
[420277964,1775907051130,-17144.63176328,0.0001306,2]
[420277965,1775907051144,-267.0,0.0001307,3]
[420277966,1775907051154,-350.0,0.00013121,2]
[420277967,1775907051163,-1466.37,0.00013122,2]
[420277968,1775907051172,-1500.0,0.00013151,2]
[420277969,1775907051187,-2600.0,0.00013151,2]
[420277970,1775907051196,-506.0,0.0001321,2]
[420277971,1775907051205,-152.74201591,0.00013238,30]
[420277972,1775907051215,-154.0,0.00013299,3]
[420277973,1775907051231,-165.0,0.00013299,3]
[420277974,1775907051240,-160.0,0.00013299,3]
[420277975,1775907051250,-1536.04360649,0.00013378,2]
[420277976,1775907051259,-217.15233878,0.00013378,2]
[420277977,1775907051276,-3240.0,0.00013425,2]
[420277978,1775907051286,-1229.48263297,0.00013425,2]
[420277979,1775907051296,-45981.07632347,0.0001343,2]
[420277980,1775907051311,-16041.98876846,0.00013462,2]
[420277981,1775907051324,-1000.0,0.00013484,2]
[420277982,1775907051333,-1399.66794,0.00013503,2]
[420277983,1775907051342,-892.54601,0.0001356,2]
[420277984,1775907051361,-892.54602,0.0001356,2]
[420277985,1775907051371,-892.54602,0.0001356,2]
[420277986,1775907051380,-350.0,0.00013576,2]
[420277987,1775907051398,-2000.0,0.00013589,2]
[420277988,1775907051410,-17144.63176328,0.00013599,2]
[420277989,1775907051421,-151.0,0.00013668,2]
[420277990,1775907051436,-151.0,0.00013668,2]
[420277991,1775907051453,-151.0,0.00013668,2]
[420277992,1775907051465,-151.0,0.00013668,2]
[420277993,1775907051484,-151.0,0.00013668,2]
[420277994,1775907051500,-151.0,0.00013668,2]
[420277995,1775907051511,-151.0,0.00013668,2]
[420277996,1775907051526,-151.0,0.00013668,2]
[420277997,1775907051555,-151.0,0.00013668,2]
[420277998,1775907051584,-151.0,0.00013668,2]
[420277999,1775907051603,-151.0,0.00013668,2]
[420278000,1775907051630,-151.0,0.00013668,2]
[420278001,1775907051655,-151.0,0.00013668,2]
[420278002,1775907051690,-151.0,0.00013668,2]
[420278003,1775907051734,-151.0,0.00013668,2]
[420278004,1775907051791,-300.0,0.00013698,2]
[420278005,1775907051882,-500.0,0.00013698,2]
[420278006,1775907052024,-500.0,0.00013698,2]
[420278007,1775907052148,-500.0,0.00013698,2]
[420278008,1775907052248,-500.0,0.00013698,2]
[420278009,1775907052290,-500.0,0.00013698,2]
[420278010,1775907052320,-500.0,0.00013698,2]
[420278011,1775907052333,-500.0,0.00013698,2]
[420278012,1775907052346,-500.0,0.00013698,2]
[420278013,1775907052365,-500.0,0.00013698,2]
[420278014,1775907052375,-500.0,0.00013698,2]
[420278015,1775907052386,-500.0,0.00013698,2]
[420278016,1775907052399,-516.72181272,0.00013698,2]
[420278017,1775907052410,-300.0,0.00013698,2]
[420278018,1775907052420,-500.0,0.00013698,2]
[420278019,1775907052430,-500.0,0.00013698,2]
[420278020,1775907052443,-500.0,0.00013698,2]
[420278021,1775907052453,-500.0,0.00013698,2]
[420278022,1775907052463,-619.63206437,0.00013698,2]
[420278023,1775907052473,-525.42712155,0.00013698,2]
[420278024,1775907052483,-500.0,0.00013698,2]
[420278025,1775907052492,-500.0,0.00013698,2]
[420278026,1775907052502,-500.0,0.00013698,2]
[420278027,1775907052512,-500.0,0.00013698,2]
[420278028,1775907052521,-500.0,0.00013698,2]
[420278029,1775907052530,-500.0,0.00013698,2]
[420278030,1775907052539,-500.0,0.00013698,2]
[420278031,1775907052548,-500.0,0.00013698,2]
[420278032,1775907052558,-500.0,0.00013698,2]
[420278033,1775907052567,-832.59,0.00013698,2]
[420278034,1775907052576,-832.59,0.00013698,2]
[420278035,1775907052586,-832.59,0.00013698,2]
[420278036,1775907052595,-832.59,0.00013698,2]
[420278037,1775907052604,-832.59,0.00013698,2]
[420278038,1775907052614,-832.59,0.00013698,2]
[420278039,1775907052622,-832.59,0.00013698,2]
[420278040,1775907052632,-832.59,0.00013698,2]
[420278041,1775907052641,-832.59,0.00013698,2]